[Event "Titled Tuesday Blitz September 27 Late 2022"]
[White "Vasquez Schroeder, Rodrigo"]
[Black "Domingo Nunez, Ruben"]
[WhiteFideId "3400042"]
[BlackFideId "22245570"]
[WhiteElo "2577"]
[BlackElo "2406"]
[Result "1-0"]
[Round "06"]
[TimeControl "180+1"]
[Date "2022.09.27"]
[WhiteClock "0:00:20"]
[BlackClock "0:00:11"]

1. d4 {[%clk 0:03:00]}  g6 {[%clk 0:02:52]} 2. Nf3 {[%clk 0:02:58]}  Bg7 {[%clk 0:02:52]} 3. e4 {[%clk 0:02:58]}  c6 {[%clk 0:02:52]} 4. Nc3 {[%clk 0:02:57]}  d5 {[%clk 0:02:53]} 5. h3 {[%clk 0:02:58]}  dxe4 {[%clk 0:02:53]} 6. Nxe4 {[%clk 0:02:58]}  Nf6 {[%clk 0:02:54]} 7. Nxf6+ {[%clk 0:02:57]}  exf6 {[%clk 0:02:54]} 8. Bc4 {[%clk 0:02:57]}  O-O {[%clk 0:02:55]} 9. O-O {[%clk 0:02:56]}  a5 {[%clk 0:02:56]} 10. a4 {[%clk 0:02:56]}  Na6 {[%clk 0:02:56]} 11. Re1 {[%clk 0:02:54]}  Nc7 {[%clk 0:02:57]} 12. c3 {[%clk 0:02:54]}  Nd5 {[%clk 0:02:57]} 13. Nd2 {[%clk 0:02:50]}  Be6 {[%clk 0:02:54]} 14. Bf1 {[%clk 0:02:46]}  Qc7 {[%clk 0:02:46]} 15. Ne4 {[%clk 0:02:45]}  b6 {[%clk 0:02:45]} 16. Qf3 {[%clk 0:02:38]}  Rad8 {[%clk 0:02:32]} 17. c4 {[%clk 0:02:12]}  f5 {[%clk 0:02:32]} 18. Ng5 {[%clk 0:02:10]}  Nb4 {[%clk 0:02:32]} 19. Rxe6 {[%clk 0:02:11]}  h6 {[%clk 0:01:35]} 20. Bf4 {[%clk 0:02:02]}  Qc8 {[%clk 0:01:21]} 21. Re7 {[%clk 0:01:28]}  hxg5 {[%clk 0:01:21]} 22. Bxg5 {[%clk 0:01:28]}  Rxd4 {[%clk 0:01:09]} 23. Be3 {[%clk 0:01:20]}  Qd8 {[%clk 0:00:39]} 24. Bxd4 {[%clk 0:01:18]}  Qxe7 {[%clk 0:00:39]} 25. Bxb6 {[%clk 0:01:17]}  Bxb2 {[%clk 0:00:35]} 26. Rb1 {[%clk 0:01:16]}  Qe5 {[%clk 0:00:36]} 27. Qe2 {[%clk 0:01:03]}  Qxe2 {[%clk 0:00:20]} 28. Bxe2 {[%clk 0:01:03]}  Bc3 {[%clk 0:00:21]} 29. Bxa5 {[%clk 0:01:02]}  Na2 {[%clk 0:00:21]} 30. Bc7 {[%clk 0:00:53]}  Ra8 {[%clk 0:00:18]} 31. Rb8+ {[%clk 0:00:52]}  Rxb8 {[%clk 0:00:17]} 32. Bxb8 {[%clk 0:00:53]}  Ba5 {[%clk 0:00:18]} 33. Bf3 {[%clk 0:00:50]}  c5 {[%clk 0:00:18]} 34. Be5 {[%clk 0:00:48]}  Nc3 {[%clk 0:00:18]} 35. Bc6 {[%clk 0:00:47]}  Kf8 {[%clk 0:00:17]} 36. Bd6+ {[%clk 0:00:46]}  Kg7 {[%clk 0:00:17]} 37. Bxc5 {[%clk 0:00:46]}  Kf6 {[%clk 0:00:16]} 38. Kf1 {[%clk 0:00:45]}  Ke6 {[%clk 0:00:16]} 39. f4 {[%clk 0:00:45]}  f6 {[%clk 0:00:13]} 40. g3 {[%clk 0:00:45]}  g5 {[%clk 0:00:14]} 41. h4 {[%clk 0:00:41]}  gxh4 {[%clk 0:00:13]} 42. gxh4 {[%clk 0:00:42]}  Kf7 {[%clk 0:00:14]} 43. h5 {[%clk 0:00:39]}  Kg7 {[%clk 0:00:14]} 44. Kf2 {[%clk 0:00:38]}  Kh6 {[%clk 0:00:14]} 45. Kg3 {[%clk 0:00:30]}  Ne2+ {[%clk 0:00:14]} 46. Kf3 {[%clk 0:00:28]}  Nc3 {[%clk 0:00:14]} 47. Be8 {[%clk 0:00:27]}  Ne4 {[%clk 0:00:13]} 48. Bf8+ {[%clk 0:00:27]}  Kh7 {[%clk 0:00:13]} 49. Bg6+ {[%clk 0:00:27]}  Kg8 {[%clk 0:00:14]} 50. Be7 {[%clk 0:00:21]}  Nd2+ {[%clk 0:00:13]} 51. Ke2 {[%clk 0:00:20]}  Nxc4 {[%clk 0:00:13]} 52. Bxf6 {[%clk 0:00:21]}  Nd6 {[%clk 0:00:12]} 53. h6 {[%clk 0:00:19]}  Nf7 {[%clk 0:00:12]} 54. h7+ {[%clk 0:00:19]}  Kf8 {[%clk 0:00:11]} 55. Bxf7 {[%clk 0:00:20]} 1-0


[Site "https://www.chess.com"]

[Event "Titled Tuesday Blitz September 27 Late 2022"]
[White "Vlassov, Nikolai"]
[Black "Nogerbek, Kazybek"]
[WhiteFideId "4103360"]
[BlackFideId "13710427"]
[WhiteElo "2324"]
[BlackElo "2458"]
[Result "0-1"]
[Round "06"]
[TimeControl "180+1"]
[Date "2022.09.27"]
[WhiteClock "0:00:03"]
[BlackClock "0:00:25"]

1. e4 {[%clk 0:03:00]}  c5 {[%clk 0:02:58]} 2. c3 {[%clk 0:03:00]}  d5 {[%clk 0:02:52]} 3. exd5 {[%clk 0:03:00]}  Qxd5 {[%clk 0:02:53]} 4. d4 {[%clk 0:03:01]}  Nf6 {[%clk 0:02:53]} 5. Nf3 {[%clk 0:03:01]}  e6 {[%clk 0:02:54]} 6. a3 {[%clk 0:03:00]}  Nc6 {[%clk 0:02:52]} 7. Be3 {[%clk 0:03:00]}  cxd4 {[%clk 0:02:51]} 8. cxd4 {[%clk 0:03:00]}  Be7 {[%clk 0:02:45]} 9. Nc3 {[%clk 0:03:00]}  Qd8 {[%clk 0:02:46]} 10. Bd3 {[%clk 0:03:01]}  O-O {[%clk 0:02:46]} 11. Qc2 {[%clk 0:03:02]}  h6 {[%clk 0:02:38]} 12. O-O {[%clk 0:03:01]}  b6 {[%clk 0:02:36]} 13. Rad1 {[%clk 0:02:58]}  Bb7 {[%clk 0:02:36]} 14. Qd2 {[%clk 0:02:56]}  Re8 {[%clk 0:02:31]} 15. h3 {[%clk 0:02:42]}  Rc8 {[%clk 0:02:31]} 16. Ne5 {[%clk 0:02:34]}  Bf8 {[%clk 0:02:28]} 17. Bb5 {[%clk 0:02:28]}  Nd5 {[%clk 0:02:16]} 18. Rfe1 {[%clk 0:01:58]}  Nxc3 {[%clk 0:02:11]} 19. bxc3 {[%clk 0:01:55]}  Qd5 {[%clk 0:02:10]} 20. c4 {[%clk 0:01:46]}  Qd8 {[%clk 0:01:40]} 21. Qb2 {[%clk 0:01:31]}  Qc7 {[%clk 0:01:27]} 22. Bf4 {[%clk 0:01:26]}  Bd6 {[%clk 0:01:24]} 23. Bg3 {[%clk 0:01:01]}  Red8 {[%clk 0:01:22]} 24. Nxc6 {[%clk 0:00:46]}  Bxc6 {[%clk 0:01:19]} 25. Bxd6 {[%clk 0:00:44]}  Qxd6 {[%clk 0:01:15]} 26. Ba6 {[%clk 0:00:34]}  Rb8 {[%clk 0:01:06]} 27. Qc3 {[%clk 0:00:30]}  b5 {[%clk 0:00:57]} 28. Bxb5 {[%clk 0:00:30]}  Bxb5 {[%clk 0:00:58]} 29. cxb5 {[%clk 0:00:29]}  Rxb5 {[%clk 0:00:58]} 30. Rd3 {[%clk 0:00:24]}  Rd5 {[%clk 0:00:57]} 31. Red1 {[%clk 0:00:20]}  Qd7 {[%clk 0:00:56]} 32. g3 {[%clk 0:00:16]}  e5 {[%clk 0:00:56]} 33. Kg2 {[%clk 0:00:10]}  Rxd4 {[%clk 0:00:55]} 34. Rxd4 {[%clk 0:00:10]}  exd4 {[%clk 0:00:56]} 35. Qc4 {[%clk 0:00:09]}  d3 {[%clk 0:00:53]} 36. h4 {[%clk 0:00:08]}  d2 {[%clk 0:00:52]} 37. Kf1 {[%clk 0:00:09]}  h5 {[%clk 0:00:51]} 38. Qc3 {[%clk 0:00:07]}  Qd5 {[%clk 0:00:43]} 39. f3 {[%clk 0:00:04]}  Qd6 {[%clk 0:00:38]} 40. Kf2 {[%clk 0:00:04]}  Qb6+ {[%clk 0:00:38]} 41. Qe3 {[%clk 0:00:03]}  Qb2 {[%clk 0:00:33]} 42. Ke2 {[%clk 0:00:03]}  Qb5+ {[%clk 0:00:27]} 43. Kf2 {[%clk 0:00:03]}  Qd7 {[%clk 0:00:25]} 0-1


[Site "https://www.chess.com"]

[Event "Titled Tuesday Blitz September 27 Late 2022"]
[White "Badelka, Olga"]
[Black "Samarth, J Rao"]
[WhiteFideId "13509926"]
[BlackFideId "46652370"]
[WhiteElo "2165"]
[BlackElo "1514"]
[Result "1-0"]
[Round "07"]
[TimeControl "180+1"]
[Date "2022.09.28"]
[WhiteClock "0:00:11"]
[BlackClock "0:00:02"]

1. c4 {[%clk 0:03:00]}  e6 {[%clk 0:02:17]} 2. Nc3 {[%clk 0:02:59]}  d5 {[%clk 0:02:16]} 3. d4 {[%clk 0:02:59]}  c6 {[%clk 0:02:16]} 4. e3 {[%clk 0:02:58]}  Nf6 {[%clk 0:02:15]} 5. Nf3 {[%clk 0:02:57]}  Bd6 {[%clk 0:02:16]} 6. Qc2 {[%clk 0:02:57]}  O-O {[%clk 0:02:16]} 7. b3 {[%clk 0:02:56]}  Nbd7 {[%clk 0:02:15]} 8. Bb2 {[%clk 0:02:56]}  Qe7 {[%clk 0:02:16]} 9. c5 {[%clk 0:02:45]}  Bb8 {[%clk 0:02:14]} 10. Be2 {[%clk 0:02:42]}  e5 {[%clk 0:02:12]} 11. b4 {[%clk 0:02:43]}  e4 {[%clk 0:02:09]} 12. Nd2 {[%clk 0:02:42]}  a6 {[%clk 0:02:05]} 13. O-O-O {[%clk 0:02:40]}  b5 {[%clk 0:02:01]} 14. Kb1 {[%clk 0:02:29]}  a5 {[%clk 0:01:59]} 15. a3 {[%clk 0:02:29]}  axb4 {[%clk 0:01:56]} 16. axb4 {[%clk 0:02:29]}  Bc7 {[%clk 0:01:53]} 17. Nb3 {[%clk 0:02:28]}  Nb8 {[%clk 0:01:43]} 18. Na2 {[%clk 0:02:12]}  Bg4 {[%clk 0:01:33]} 19. Bc3 {[%clk 0:02:09]}  Ra3 {[%clk 0:01:21]} 20. Kb2 {[%clk 0:02:08]}  Ra4 {[%clk 0:01:11]} 21. Ra1 {[%clk 0:02:07]}  Na6 {[%clk 0:01:09]} 22. Bxg4 {[%clk 0:01:57]}  Nxg4 {[%clk 0:01:10]} 23. Qd2 {[%clk 0:01:57]}  f5 {[%clk 0:01:09]} 24. h3 {[%clk 0:01:54]}  Nh6 {[%clk 0:01:06]} 25. g3 {[%clk 0:01:53]}  g5 {[%clk 0:00:57]} 26. h4 {[%clk 0:01:47]}  f4 {[%clk 0:00:49]} 27. hxg5 {[%clk 0:01:39]}  fxe3 {[%clk 0:00:49]} 28. Qxe3 {[%clk 0:01:39]}  Ng4 {[%clk 0:00:46]} 29. Qe1 {[%clk 0:01:29]}  Nxf2 {[%clk 0:00:43]} 30. Nac1 {[%clk 0:01:26]}  Nxh1 {[%clk 0:00:41]} 31. Qxh1 {[%clk 0:01:24]}  Rf2+ {[%clk 0:00:41]} 32. Kb1 {[%clk 0:01:24]}  Rxa1+ {[%clk 0:00:25]} 33. Kxa1 {[%clk 0:01:22]}  Qxg5 {[%clk 0:00:23]} 34. Qh3 {[%clk 0:01:21]}  Qf5 {[%clk 0:00:18]} 35. Qh4 {[%clk 0:01:18]}  Qf6 {[%clk 0:00:17]} 36. Qh5 {[%clk 0:01:16]}  Qf7 {[%clk 0:00:15]} 37. Qh3 {[%clk 0:01:15]}  Rf3 {[%clk 0:00:13]} 38. Be1 {[%clk 0:00:50]}  Qf5 {[%clk 0:00:10]} 39. Qh4 {[%clk 0:00:46]}  Rf1 {[%clk 0:00:08]} 40. Bd2 {[%clk 0:00:44]}  Qf7 {[%clk 0:00:04]} 41. Qh3 {[%clk 0:00:39]}  Rf5 {[%clk 0:00:04]} 42. Qh4 {[%clk 0:00:33]}  Rf6 {[%clk 0:00:03]} 43. Qg4+ {[%clk 0:00:32]}  Rg6 {[%clk 0:00:03]} 44. Qc8+ {[%clk 0:00:32]}  Kg7 {[%clk 0:00:02]} 45. Qxa6 {[%clk 0:00:33]}  Rxg3 {[%clk 0:00:01]} 46. Qxc6 {[%clk 0:00:31]}  Bf4 {[%clk 0:00:02]} 47. Bxf4 {[%clk 0:00:24]}  Qxf4 {[%clk 0:00:02]} 48. Qxd5 {[%clk 0:00:24]}  Rc3 {[%clk 0:00:01]} 49. Kb1 {[%clk 0:00:19]}  Rc4 {[%clk 0:00:01]} 50. Qd7+ {[%clk 0:00:18]}  Kg6 {[%clk 0:00:02]} 51. Qe6+ {[%clk 0:00:18]}  Kg7 {[%clk 0:00:02]} 52. c6 {[%clk 0:00:17]}  Rxb4 {[%clk 0:00:01]} 53. Qe7+ {[%clk 0:00:12]}  Kg6 {[%clk 0:00:01]} 54. Qxb4 {[%clk 0:00:13]}  e3 {[%clk 0:00:02]} 55. Qc3 {[%clk 0:00:12]}  Qe4+ {[%clk 0:00:02]} 56. Qc2 {[%clk 0:00:10]}  Qxc2+ {[%clk 0:00:01]} 57. Kxc2 {[%clk 0:00:10]}  e2 {[%clk 0:00:02]} 58. Nxe2 {[%clk 0:00:11]} 1-0


[Site "https://www.chess.com"]

[Event "Titled Tuesday Blitz September 27 Late 2022"]
[White "Barria Zuniga, Daniel"]
[Black "Peatman, Carter"]
[WhiteFideId "3400816"]
[BlackFideId "2096480"]
[WhiteElo "2414"]
[BlackElo "2477"]
[Result "1-0"]
[Round "07"]
[TimeControl "180+1"]
[Date "2022.09.28"]
[WhiteClock "0:00:39"]
[BlackClock "0:00:08"]

1. d4 {[%clk 0:03:00]}  Nf6 {[%clk 0:02:56]} 2. c4 {[%clk 0:03:01]}  Nc6 {[%clk 0:02:56]} 3. Nf3 {[%clk 0:03:00]}  e6 {[%clk 0:02:54]} 4. a3 {[%clk 0:02:55]}  Be7 {[%clk 0:02:44]} 5. Nc3 {[%clk 0:02:55]}  d5 {[%clk 0:02:39]} 6. Bf4 {[%clk 0:02:45]}  a6 {[%clk 0:02:23]} 7. e3 {[%clk 0:02:44]}  O-O {[%clk 0:02:21]} 8. h3 {[%clk 0:02:40]}  dxc4 {[%clk 0:02:15]} 9. Bxc4 {[%clk 0:02:39]}  b5 {[%clk 0:02:15]} 10. Bd3 {[%clk 0:02:35]}  Bb7 {[%clk 0:02:14]} 11. O-O {[%clk 0:02:34]}  Bd6 {[%clk 0:02:13]} 12. Bg5 {[%clk 0:02:32]}  h6 {[%clk 0:02:08]} 13. Bxf6 {[%clk 0:02:32]}  Qxf6 {[%clk 0:02:07]} 14. Rc1 {[%clk 0:02:30]}  Qe7 {[%clk 0:01:53]} 15. Qc2 {[%clk 0:02:18]}  Rac8 {[%clk 0:01:34]} 16. Rfd1 {[%clk 0:02:06]}  Rfd8 {[%clk 0:01:32]} 17. Bh7+ {[%clk 0:01:59]}  Kf8 {[%clk 0:01:27]} 18. Be4 {[%clk 0:01:59]}  Na5 {[%clk 0:01:16]} 19. Bxb7 {[%clk 0:01:58]}  Nxb7 {[%clk 0:01:16]} 20. Qh7 {[%clk 0:01:57]}  Qf6 {[%clk 0:01:05]} 21. Ne4 {[%clk 0:01:57]}  Qg6 {[%clk 0:01:05]} 22. Qxg6 {[%clk 0:01:57]}  fxg6 {[%clk 0:01:05]} 23. Rc6 {[%clk 0:01:58]}  a5 {[%clk 0:01:00]} 24. Rdc1 {[%clk 0:01:45]}  a4 {[%clk 0:00:49]} 25. Nxd6 {[%clk 0:01:41]}  Nxd6 {[%clk 0:00:44]} 26. Rxc7 {[%clk 0:01:40]}  Nc4 {[%clk 0:00:44]} 27. Rxc8 {[%clk 0:01:37]}  Rxc8 {[%clk 0:00:44]} 28. Ne5 {[%clk 0:01:35]}  g5 {[%clk 0:00:38]} 29. Nxc4 {[%clk 0:01:31]}  bxc4 {[%clk 0:00:39]} 30. Kf1 {[%clk 0:01:30]}  Ke7 {[%clk 0:00:34]} 31. Ke2 {[%clk 0:01:30]}  Kd6 {[%clk 0:00:33]} 32. Kd2 {[%clk 0:01:29]}  e5 {[%clk 0:00:32]} 33. Kc3 {[%clk 0:01:25]}  Kd5 {[%clk 0:00:28]} 34. dxe5 {[%clk 0:01:23]}  Kxe5 {[%clk 0:00:27]} 35. Rd1 {[%clk 0:01:23]}  Rb8 {[%clk 0:00:25]} 36. Rd4 {[%clk 0:01:20]}  Rb3+ {[%clk 0:00:25]} 37. Kc2 {[%clk 0:01:20]}  c3 {[%clk 0:00:25]} 38. Rb4 {[%clk 0:01:06]}  Rxb4 {[%clk 0:00:08]} 39. axb4 {[%clk 0:01:05]}  cxb2 {[%clk 0:00:04]} 40. Kxb2 {[%clk 0:01:05]}  h5 {[%clk 0:00:04]} 41. Ka3 {[%clk 0:01:05]}  Ke4 {[%clk 0:00:03]} 42. Kxa4 {[%clk 0:01:03]}  g4 {[%clk 0:00:04]} 43. hxg4 {[%clk 0:01:02]}  hxg4 {[%clk 0:00:05]} 44. b5 {[%clk 0:01:00]}  Kd3 {[%clk 0:00:04]} 45. b6 {[%clk 0:00:58]}  Ke2 {[%clk 0:00:04]} 46. b7 {[%clk 0:00:56]}  Kxf2 {[%clk 0:00:04]} 47. b8=Q {[%clk 0:00:56]}  Kxg2 {[%clk 0:00:04]} 48. Qf8 {[%clk 0:00:52]}  g3 {[%clk 0:00:03]} 49. Qxg7 {[%clk 0:00:51]}  Kf2 {[%clk 0:00:04]} 50. e4 {[%clk 0:00:51]}  g2 {[%clk 0:00:04]} 51. e5 {[%clk 0:00:51]}  g1=Q {[%clk 0:00:05]} 52. Qxg1+ {[%clk 0:00:50]}  Ke2 {[%clk 0:00:05]} 53. Qa7 {[%clk 0:00:47]}  Kd3 {[%clk 0:00:06]} 54. e6 {[%clk 0:00:43]}  Kc3 {[%clk 0:00:07]} 55. Qc7+ {[%clk 0:00:42]}  Kb2 {[%clk 0:00:08]} 56. Qg3 {[%clk 0:00:40]}  Ka1 {[%clk 0:00:08]} 57. Qh2 {[%clk 0:00:39]} 1-0


[Site "https://www.chess.com"]

[Event "Titled Tuesday Blitz September 27 Late 2022"]
[White "Bartel, Mateusz"]
[Black "Besedes, Danilo"]
[WhiteFideId "1112635"]
[BlackFideId "946796"]
[WhiteElo "2526"]
[BlackElo "2352"]
[Result "1/2-1/2"]
[Round "07"]
[TimeControl "180+1"]
[Date "2022.09.27"]
[WhiteClock "0:00:07"]
[BlackClock "0:00:25"]

1. Nf3 {[%clk 0:03:00]}  Nf6 {[%clk 0:02:59]} 2. c4 {[%clk 0:03:00]}  e6 {[%clk 0:03:00]} 3. b3 {[%clk 0:02:59]}  d5 {[%clk 0:03:00]} 4. Bb2 {[%clk 0:02:59]}  c5 {[%clk 0:02:57]} 5. e3 {[%clk 0:02:59]}  Nc6 {[%clk 0:02:57]} 6. cxd5 {[%clk 0:02:58]}  Nxd5 {[%clk 0:02:55]} 7. Nc3 {[%clk 0:02:57]}  Nf6 {[%clk 0:02:39]} 8. Bb5 {[%clk 0:02:51]}  Bd7 {[%clk 0:02:38]} 9. O-O {[%clk 0:02:51]}  Be7 {[%clk 0:02:34]} 10. Rc1 {[%clk 0:02:37]}  O-O {[%clk 0:02:32]} 11. Na4 {[%clk 0:02:38]}  b6 {[%clk 0:02:30]} 12. d4 {[%clk 0:02:37]}  Nxd4 {[%clk 0:02:10]} 13. Nxd4 {[%clk 0:02:25]}  cxd4 {[%clk 0:02:10]} 14. Bxd7 {[%clk 0:02:25]}  Qxd7 {[%clk 0:02:10]} 15. Qxd4 {[%clk 0:02:22]}  Qxd4 {[%clk 0:02:10]} 16. Bxd4 {[%clk 0:02:23]}  Rac8 {[%clk 0:02:07]} 17. f3 {[%clk 0:02:22]}  Nd7 {[%clk 0:02:01]} 18. Bb2 {[%clk 0:02:19]}  Nc5 {[%clk 0:01:59]} 19. Nxc5 {[%clk 0:02:17]}  Bxc5 {[%clk 0:01:57]} 20. Kf2 {[%clk 0:02:17]}  Rfd8 {[%clk 0:01:56]} 21. Ke2 {[%clk 0:02:17]}  Kf8 {[%clk 0:01:54]} 22. Rc2 {[%clk 0:02:08]}  Bd6 {[%clk 0:01:54]} 23. Rxc8 {[%clk 0:01:41]}  Rxc8 {[%clk 0:01:54]} 24. Kd3 {[%clk 0:01:36]}  g6 {[%clk 0:01:38]} 25. h3 {[%clk 0:01:32]}  h5 {[%clk 0:01:36]} 26. a4 {[%clk 0:01:27]}  Ke7 {[%clk 0:01:35]} 27. e4 {[%clk 0:01:23]}  a6 {[%clk 0:01:22]} 28. Bd4 {[%clk 0:01:12]}  Rc6 {[%clk 0:01:18]} 29. g4 {[%clk 0:00:55]}  hxg4 {[%clk 0:01:13]} 30. fxg4 {[%clk 0:00:54]}  Bc5 {[%clk 0:01:02]} 31. Bf6+ {[%clk 0:00:53]}  Ke8 {[%clk 0:00:57]} 32. h4 {[%clk 0:00:50]}  Be7 {[%clk 0:00:55]} 33. e5 {[%clk 0:00:33]}  Rc5 {[%clk 0:00:46]} 34. Kd4 {[%clk 0:00:22]}  Rd5+ {[%clk 0:00:44]} 35. Ke4 {[%clk 0:00:22]}  b5 {[%clk 0:00:37]} 36. Rc1 {[%clk 0:00:18]}  Kd7 {[%clk 0:00:34]} 37. Rh1 {[%clk 0:00:13]}  Ke8 {[%clk 0:00:30]} 38. h5 {[%clk 0:00:12]}  gxh5 {[%clk 0:00:28]} 39. gxh5 {[%clk 0:00:13]}  Bxf6 {[%clk 0:00:27]} 40. exf6 {[%clk 0:00:13]}  Kf8 {[%clk 0:00:28]} 41. h6 {[%clk 0:00:13]}  Kg8 {[%clk 0:00:28]} 42. Rg1+ {[%clk 0:00:14]}  Kh7 {[%clk 0:00:28]} 43. Rg7+ {[%clk 0:00:14]}  Kxh6 {[%clk 0:00:28]} 44. Rxf7 {[%clk 0:00:14]}  Kg6 {[%clk 0:00:28]} 45. Ra7 {[%clk 0:00:13]}  bxa4 {[%clk 0:00:28]} 46. bxa4 {[%clk 0:00:13]}  Ra5 {[%clk 0:00:26]} 47. f7 {[%clk 0:00:13]}  Kg7 {[%clk 0:00:26]} 48. Kd4 {[%clk 0:00:11]}  Rxa4+ {[%clk 0:00:25]} 49. Ke5 {[%clk 0:00:12]}  Ra1 {[%clk 0:00:24]} 50. Kxe6 {[%clk 0:00:12]}  Re1+ {[%clk 0:00:24]} 51. Kd6 {[%clk 0:00:11]}  Rf1 {[%clk 0:00:24]} 52. Rxa6 {[%clk 0:00:06]}  Rf6+ {[%clk 0:00:23]} 53. Ke7 {[%clk 0:00:06]}  Rxf7+ {[%clk 0:00:23]} 54. Ke8 {[%clk 0:00:06]}  Rf2 {[%clk 0:00:23]} 55. Ra7+ {[%clk 0:00:06]}  Kg6 {[%clk 0:00:24]} 56. Ra6+ {[%clk 0:00:06]}  Kg7 {[%clk 0:00:23]} 57. Ra7+ {[%clk 0:00:07]}  Kg6 {[%clk 0:00:24]} 58. Ra6+ {[%clk 0:00:07]}  Rf6 {[%clk 0:00:24]} 59. Rxf6+ {[%clk 0:00:07]}  Kxf6 {[%clk 0:00:25]} 1/2-1/2


[Site "https://www.chess.com"]

[Event "Titled Tuesday Blitz September 27 Late 2022"]
[White "Baskakov, Egor"]
[Black "Oro, Faustino"]
[WhiteFideId "24197866"]
[BlackFideId "20000197"]
[WhiteElo "2211"]
[BlackElo "1838"]
[Result "1-0"]
[Round "07"]
[TimeControl "180+1"]
[Date "2022.09.28"]
[WhiteClock "0:00:16"]
[BlackClock "0:00:02"]

1. e4 {[%clk 0:03:00]}  c5 {[%clk 0:02:56]} 2. Nf3 {[%clk 0:03:00]}  d6 {[%clk 0:02:55]} 3. d4 {[%clk 0:02:58]}  cxd4 {[%clk 0:02:55]} 4. Nxd4 {[%clk 0:02:59]}  Nf6 {[%clk 0:02:56]} 5. Nc3 {[%clk 0:03:00]}  a6 {[%clk 0:02:56]} 6. a4 {[%clk 0:03:00]}  e5 {[%clk 0:02:54]} 7. Nde2 {[%clk 0:03:00]}  Be7 {[%clk 0:02:53]} 8. g3 {[%clk 0:03:01]}  Be6 {[%clk 0:02:52]} 9. Bg2 {[%clk 0:03:01]}  O-O {[%clk 0:02:53]} 10. h3 {[%clk 0:03:01]}  Nbd7 {[%clk 0:02:51]} 11. O-O {[%clk 0:02:58]}  Rc8 {[%clk 0:02:49]} 12. g4 {[%clk 0:02:58]}  h6 {[%clk 0:02:42]} 13. Re1 {[%clk 0:02:57]}  Nc5 {[%clk 0:02:38]} 14. Ng3 {[%clk 0:02:55]}  Nh7 {[%clk 0:02:35]} 15. Nf5 {[%clk 0:02:54]}  Re8 {[%clk 0:02:13]} 16. Nd5 {[%clk 0:02:43]}  Bf8 {[%clk 0:02:08]} 17. Be3 {[%clk 0:02:23]}  Ng5 {[%clk 0:01:51]} 18. f3 {[%clk 0:01:59]}  g6 {[%clk 0:01:39]} 19. Ng3 {[%clk 0:01:55]}  Bg7 {[%clk 0:01:31]} 20. h4 {[%clk 0:01:53]}  Nh7 {[%clk 0:01:31]} 21. h5 {[%clk 0:01:53]}  Qh4 {[%clk 0:01:27]} 22. Bf2 {[%clk 0:01:51]}  Qd8 {[%clk 0:01:19]} 23. c4 {[%clk 0:01:46]}  Ng5 {[%clk 0:01:17]} 24. b4 {[%clk 0:01:44]}  Nd7 {[%clk 0:01:16]} 25. Rc1 {[%clk 0:01:45]}  Nf6 {[%clk 0:01:09]} 26. Qd3 {[%clk 0:01:30]}  Nd7 {[%clk 0:00:57]} 27. a5 {[%clk 0:01:26]}  Bf8 {[%clk 0:00:53]} 28. Red1 {[%clk 0:01:17]}  Rc6 {[%clk 0:00:41]} 29. b5 {[%clk 0:01:13]}  Nc5 {[%clk 0:00:40]} 30. Qa3 {[%clk 0:01:12]}  Rc8 {[%clk 0:00:40]} 31. Nb6 {[%clk 0:01:11]}  Rc7 {[%clk 0:00:39]} 32. Qb2 {[%clk 0:01:04]}  axb5 {[%clk 0:00:35]} 33. cxb5 {[%clk 0:01:02]}  Qf6 {[%clk 0:00:30]} 34. Qe2 {[%clk 0:00:56]}  Be7 {[%clk 0:00:20]} 35. Na4 {[%clk 0:00:49]}  Rec8 {[%clk 0:00:18]} 36. b6 {[%clk 0:00:45]}  Rc6 {[%clk 0:00:17]} 37. Bxc5 {[%clk 0:00:43]}  dxc5 {[%clk 0:00:18]} 38. Nc3 {[%clk 0:00:44]}  c4 {[%clk 0:00:16]} 39. Nd5 {[%clk 0:00:43]}  Bc5+ {[%clk 0:00:16]} 40. Kh1 {[%clk 0:00:40]}  Bxd5 {[%clk 0:00:14]} 41. exd5 {[%clk 0:00:39]}  Rd6 {[%clk 0:00:13]} 42. Rxc4 {[%clk 0:00:37]}  Qd8 {[%clk 0:00:10]} 43. Qxe5 {[%clk 0:00:32]}  Ba3 {[%clk 0:00:06]} 44. Rxc8 {[%clk 0:00:26]}  Qxc8 {[%clk 0:00:07]} 45. hxg6 {[%clk 0:00:26]}  fxg6 {[%clk 0:00:05]} 46. Re1 {[%clk 0:00:22]}  Nf7 {[%clk 0:00:05]} 47. Qe2 {[%clk 0:00:19]}  Kg7 {[%clk 0:00:05]} 48. Ne4 {[%clk 0:00:19]}  Rxd5 {[%clk 0:00:04]} 49. Qe3 {[%clk 0:00:19]}  Bb2 {[%clk 0:00:03]} 50. Qb3 {[%clk 0:00:17]}  Bc3 {[%clk 0:00:01]} 51. Qxc3+ {[%clk 0:00:16]}  Qxc3 {[%clk 0:00:01]} 52. Nxc3 {[%clk 0:00:17]}  Rxa5 {[%clk 0:00:02]} 53. Rb1 {[%clk 0:00:16]}  Ra6 {[%clk 0:00:01]} 54. f4 {[%clk 0:00:16]}  Kf6 {[%clk 0:00:02]} 55. Bxb7 {[%clk 0:00:16]} 1-0


[Site "https://www.chess.com"]

[Event "Titled Tuesday Blitz September 27 Late 2022"]
[White "Bortnyk, Mykola"]
[Black "Martinez Alcantara, Jose Eduardo"]
[WhiteFideId "14120836"]
[BlackFideId "3805662"]
[WhiteElo "2582"]
[BlackElo "2703"]
[Result "1/2-1/2"]
[Round "07"]
[TimeControl "180+1"]
[Date "2022.09.27"]
[WhiteClock "0:02:11"]
[BlackClock "0:02:03"]

1. e4 {[%clk 0:03:00]}  e5 {[%clk 0:02:59]} 2. Nf3 {[%clk 0:02:59]}  Nf6 {[%clk 0:03:00]} 3. Nxe5 {[%clk 0:02:58]}  d6 {[%clk 0:03:00]} 4. Nf3 {[%clk 0:02:59]}  Nxe4 {[%clk 0:03:00]} 5. Bd3 {[%clk 0:02:59]}  d5 {[%clk 0:02:56]} 6. O-O {[%clk 0:02:58]}  Be7 {[%clk 0:02:56]} 7. Nc3 {[%clk 0:02:52]}  Nf6 {[%clk 0:02:55]} 8. Ne2 {[%clk 0:02:50]}  O-O {[%clk 0:02:54]} 9. c3 {[%clk 0:02:50]}  c5 {[%clk 0:02:52]} 10. Bc2 {[%clk 0:02:47]}  Nc6 {[%clk 0:02:52]} 11. d4 {[%clk 0:02:46]}  Bg4 {[%clk 0:02:52]} 12. Ne5 {[%clk 0:02:33]}  cxd4 {[%clk 0:02:44]} 13. Nxg4 {[%clk 0:02:32]}  Nxg4 {[%clk 0:02:44]} 14. Nxd4 {[%clk 0:02:32]}  Nf6 {[%clk 0:02:44]} 15. Re1 {[%clk 0:02:29]}  Re8 {[%clk 0:02:43]} 16. Nf5 {[%clk 0:02:28]}  Bf8 {[%clk 0:02:41]} 17. Bg5 {[%clk 0:02:28]}  Rxe1+ {[%clk 0:02:28]} 18. Qxe1 {[%clk 0:02:29]}  h6 {[%clk 0:02:25]} 19. Bh4 {[%clk 0:02:27]}  g6 {[%clk 0:02:22]} 20. Nd4 {[%clk 0:02:21]}  Nxd4 {[%clk 0:02:21]} 21. cxd4 {[%clk 0:02:21]}  Bg7 {[%clk 0:02:20]} 22. Qb4 {[%clk 0:02:17]}  Qb6 {[%clk 0:02:18]} 23. Qxb6 {[%clk 0:02:15]}  axb6 {[%clk 0:02:19]} 24. Bb3 {[%clk 0:02:14]}  g5 {[%clk 0:02:02]} 25. Bg3 {[%clk 0:02:14]}  Ne4 {[%clk 0:02:03]} 26. Bxd5 {[%clk 0:02:12]}  Nxg3 {[%clk 0:02:02]} 27. hxg3 {[%clk 0:02:13]}  Bxd4 {[%clk 0:02:03]} 28. Bxb7 {[%clk 0:02:11]}  Ra7 {[%clk 0:02:03]} 1/2-1/2


[Site "https://www.chess.com"]